Cogmind - Beta 16 @@@ ROGUE MODE // 2025.11.21 @ 15:47:58 Player: naththebg Result: Destroyed by D9-TSF(R) with Subdweller Machine Gun Performance ------------- Evolutions (0) 0 Regions Visited (3) 600 Robots Destroyed (41) 205 Value Destroyed (1262) 1262 Prototype IDs (4) 80 Alien Tech Used (0) 0 Bonus (0) 0 TOTAL SCORE: 2147 Bonus ------- None Cogmind --------- Core Integrity 0/250 Matter 300/300 Energy 55/100 System Corruption 2% Temperature Cool (35) Movement Walking (190) Ox1 Location -10/Subcaves Parts ------- > --- POWER (1) -------- (None) > --- PROPULSION (2) --- Aluminum Leg Aluminum Leg > --- UTILITY (2) ------ Large Storage Unit Makeshift Kinetic Plating > --- WEAPON (2) ------- Particle Cannon Subdweller Beam Cannon > --- INVENTORY (15) --- Light Treads Cooling System Cooling System Cooling System Particle Cannon Particle Cannon Particle Cannon Subdweller Beam Cannon Subdweller Machine Gun Subdweller Machine Gun Improved Light Cannon Improved Light Cannon Battle Cannon Battle Cannon Peak State ------------ > --- POWER ------------ Subdweller Power Source > --- PROPULSION ------- Aluminum Leg Aluminum Leg > --- UTILITY ---------- Large Storage Unit Makeshift Kinetic Plating > --- WEAPON ----------- Improved Light Cannon Improved Light Cannon > --- INVENTORY -------- Ion Engine Light Treads Cooling System Cooling System Cooling System Particle Cannon Particle Cannon Particle Cannon Particle Cannon Particle Cannon Particle Cannon Subdweller Beam Cannon Subdweller Machine Gun Improved Light Cannon Improved Light Cannon [Rating: 15] Favorites ----------- Power Ion Engine Engine Ion Engine Propulsion Aluminum Leg Treads Light Treads Leg Aluminum Leg Utility Large Storage Unit Device Cooling System Storage Large Storage Unit Processor Visual Processing Unit Protection Makeshift Kinetic Plating Weapon Improved Light Cannon Energy Gun Medium Laser Energy Cannon Subdweller Beam Cannon Ballistic Gun Assault Rifle Ballistic Cannon Improved Light Cannon Build | -11 -10 -10 -10 ------- Run | Yrd Mat Min Sub Slots Evolved . | . . . . Power . | . . . . Propulsion . | . . . . Utility . | . . . . Weapon . | . . . . Parts Attached 20 | 4 9 . 7 Power 3 | 1 . . 2 Engine 3 | 1 . . 2 Core . | . . . . Reactor . | . . . . Propulsion 4 | 2 2 . . Treads 2 | . 2 . . Leg 2 | 2 . . . Wheel . | . . . . Hover . | . . . . Flight . | . . . . Utility 5 | 1 3 . 1 Device 1 | . 1 . . Storage 2 | 1 1 . . Processor 1 | . 1 . . Hackware . | . . . . Protection 1 | . . . 1 Artifact . | . . . . Weapon 8 | . 4 . 4 Energy Gun 1 | . 1 . . Energy Cannon 4 | . . . 4 Ballistic Gun 1 | . 1 . . Ballistic Cannon 2 | . 2 . . Launcher . | . . . . Special Weapon . | . . . . Impact Weapon . | . . . . Slashing Weapon . | . . . . Piercing Weapon . | . . . . Special Melee Weapon . | . . . . Unidentified Prototypes . | . . . . Parts Lost 2 | . . 1 1 Power 1 | . . . 1 Propulsion 1 | . . 1 . Utility . | . . . . Weapon . | . . . . Highest Loss Streak 1 | . . 1 1 To Critical Strikes . | . . . . Average Backups 13 | 5 12 14 14 Power . | . 1 1 . Propulsion 1 | 2 2 1 1 Utility 2 | . 1 3 3 Weapon 8 | 2 7 9 9 Tool/Special . | . . . . Unused Backups 20 | . 5 . 15 Power . | . . . . Propulsion 2 | . 2 . . Utility 3 | . . . 3 Weapon 15 | . 3 . 12 Tool/Special . | . . . . Average Slot Usage (%) 96 | . 93 99 95 Engine 12 | . 14 14 10 Treads 11 | . 26 22 . Leg 15 | . 1 4 28 Device 5 | . 7 14 . Storage 14 | . 14 14 14 Protection 6 | . . . 13 Energy Cannon 11 | . . . 21 Ballistic Gun 1 | . 4 . . Ballistic Cannon 14 | . 19 28 6 Peak Build Rating 15 | 4 12 12 15 Average Rating 12 | 2 10 11 14 On Entrance 7 | . 4 12 12 Avg Prop Armor Cover (%) . | . . . . Naked Turns . | . . . . Heaviest Build 48 | 10 35 35 48 Greatest Support 40 | 20 40 40 20 Greatest Overweight (x) 2 | . . 1 2 Average Overweight (x) . | . . . 1 Largest Inventory Capacity 15 | 8 15 15 15 Average Capacity 14 | 6 14 15 15 Most Carried 15 | 8 15 15 15 Average Carried 13 | 5 12 14 14 Final Capacity 15 | 8 15 15 15 Final Carried 15 | 8 15 14 14 Class Distribution -------------------- 89% | Mutant 10% | Derelict-Mutant Dominant Class ---------------- Mutant | -10/Materials Mutant | -10/Mines Mutant | -10/Subcaves Resources | -11 -10 -10 -10 ----------- Run | Yrd Mat Min Sub Matter Collected 1009 | 240 212 298 259 Remotely . | . . . . Salvage Created 1393 | . 350 338 705 Parts 95 | . 22 18 55 Haulers Intercepted 2 | . 2 . . Recyclers Shooed . | . . . . Parts Field Recycled . | . . . . Retrieved Matter . | . . . . Parts Self-Destructed 12 | . . . 12 Prevented . | . . . . Parts Restored . | . . . . Kills | -11 -10 -10 -10 ------- Run | Yrd Mat Min Sub Combat Hostiles Destroyed 34 | . 10 9 15 Guns 3 | . 3 . . Cannons 31 | . 7 9 15 Classes Destroyed 7 | . 5 1 1 Hauler 2 | . 2 . . Recycler 2 | . . 2 . Operator 1 | . 1 . . Watcher 2 | . 2 . . Swarmer 6 | . 3 3 . Grunt 15 | . 7 6 2 Subdweller 13 | . . . 13 Best Kill Streak 4 | . 4 4 2 Combat Bots Only 3 | . 3 3 2 Max Kills in Single Turn 1 | . 1 1 1 Gunslinging . | . . . . Exploded . | . . . . Melee . | . . . . Uniques/NPCs Destroyed . | . . . . Combat | -11 -10 -10 -10 -------- Run | Yrd Mat Min Sub Hostile Shots Fired 102 | . 51 23 28 Missed 32 | . 19 5 8 Hits 70 | . 32 18 20 Projectile 70 | . 32 18 20 AOE 1 | . . . 1 Damage Taken 1039 | . 381 223 435 Core 256 | . 36 61 159 Absorbed by Shields . | . . . . Ignored by Resistances 29 | . . . 29 Core Remaining (%) 100 | 100 . . . Volleys Fired 113 | . 47 21 45 Largest 2 | . 2 2 2 Hottest 160 | . 70 66 160 Shots Fired 221 | . 90 45 86 Gun 45 | . 45 . . Cannon 176 | . 45 45 86 Launcher . | . . . . Special . | . . . . Kinetic 137 | . 68 45 24 Thermal 84 | . 22 . 62 Explosive . | . . . . Electromagnetic . | . . . . Robot Hit Streak 33 | . 7 12 33 Robot Miss Streak 3 | . 3 3 2 Penetration Max . | . . . . Secondary Targets . | . . . . Shots Hit Robots 131 | . 53 28 50 Core Hits 55 | . 21 14 20 Critical Kills . | . . . . Critical Parts Destroyed . | . . . . Critical Strikes 4 | . 1 2 1 Blast 4 | . 1 2 1 Melee Attacks . | . . . . Impact . | . . . . Slashing . | . . . . Piercing . | . . . . Sneak Attacks . | . . . . Combat Hostiles . | . . . . Follow-up Attacks . | . . . . Damage Inflicted 2710 | . 932 584 1194 Guns 338 | . 338 . . Cannons 2361 | . 594 573 1194 Explosions . | . . . . Melee . | . . . . Ramming 11 | . . 11 . Kinetic 1605 | . 722 573 310 Thermal 1094 | . 210 . 884 Explosive . | . . . . Electromagnetic . | . . . . Impact . | . . . . Slashing . | . . . . Piercing . | . . . . Highest Corruption 2 | . 2 2 2 Average Corruption 2 | . 2 2 2 Corruption Purged . | . . . . Corruption Blocked . | . . . . Effects 48 | . 6 16 26 Message Errors 11 | . 1 4 6 Matter Fused 12 | . 1 1 10 Heat Flow Errors 1 | . . 1 . Energy Discharges 6 | . 1 2 3 Data Loss (minor) 10 | . . 5 5 Data Loss (major) 2 | . 2 . . Misfires 4 | . . 3 1 Alerts 1 | . 1 . . Weapon Failures 1 | . . . 1 Overload Shots . | . . . . Overflow Damage 28 | . 28 . . Projectiles 28 | . 28 . . Explosions . | . . . . Melee . | . . . . Knockbacks 11 | . 5 2 4 Impact . | . . . . Kinetic 11 | . 5 2 4 Secondary . | . . . . Self-Inflicted Damage . | . . . . Shots . | . . . . Rammed 3 | . . 3 . Targets Rammed 3 | . . 3 . Kicked . | . . . . Crushed . | . . . . Highest Temperature 196 | . 189 196 192 Average Temperature 56 | . 63 113 47 Received Heat Transfer 336 | . 183 108 45 Siege Activations . | . . . . Martial Activations . | . . . . Shielding Activations . | . . . . Robots Disrupted . | . . . . Combat Hostiles . | . . . . Robots Corrupted . | . . . . Combat Hostiles . | . . . . Parts Fried . | . . . . Impact Corruptions . | . . . . Robots Melted . | . . . . Combat Hostiles . | . . . . Parts Melted 2 | . 2 . . Heat Transferred 1887 | . 629 . 1258 Parts Sabotaged . | . . . . Parts Stolen . | . . . . Parts Stripped . | . . . . Power Chain Reactions . | . . . . Alert | -11 -10 -10 -10 ------- Run | Yrd Mat Min Sub Maximum Alert Level . | . . . . Low Security (%) 100 | 100 100 100 . Level 1 . | . . . . Level 2 . | . . . . Level 3 . | . . . . Level 4 . | . . . . Level 5 . | . . . . High Security . | . . . . Max Security . | . . . . Peak Influence 150 | . 109 150 . Initial 37 | . . 37 . Average 46 | . 20 78 . Influence Increases 756 | . 323 381 52 Destroy 0b10 Robot/C 420 | . 200 180 40 Destroy 0b10 Robot/NC 35 | . 25 10 . Destroy Leader 108 | . 58 40 10 Allied During Kill 2 | . . . 2 Successful Hack 7 | . 7 . . Disable Machine 45 | . 30 15 . Destroy Structure 4 | . 3 1 . Lose Combat Pursuer 135 | . . 135 . Influence Decreases 756 | . 226 353 177 Entered New Map 125 | . . 60 65 Time Decay 601 | . 226 283 92 Lost Part 10 | . . 10 . Lost Ally 20 | . . . 20 Squads Dispatched 2 | . 2 . . Investigation . | . . . . Extermination . | . . . . Reinforcement 2 | . 2 . . Assault . | . . . . Garrison . | . . . . Intercept . | . . . . Searches Triggered . | . . . . Construction Impeded . | . . . . Haulers Reinforced . | . . . . Active Scanning Responses . | . . . . Cargo Convoy Interrupts . | . . . . Stealth | -11 -10 -10 -10 --------- Run | Yrd Mat Min Sub Distress Signals 1 | . 1 . . Communications Jammed . | . . . . Distress Signals . | . . . . Times Spotted 49 | . 17 15 17 Peak Tracking Total 4 | . 4 4 3 Tactical Retreats 6 | . . 5 1 Traps | -11 -10 -10 -10 ------- Run | Yrd Mat Min Sub Traps Triggered 1 | . 1 . . Indirectly . | . . . . Trap Hack Attempts . | . . . . Triggered . | . . . . Disarmed . | . . . . Reprogrammed . | . . . . Reused . | . . . . Traps Extracted . | . . . . Installed 1 | . . . 1 Triggered . | . . . . Machines | -11 -10 -10 -10 ---------- Run | Yrd Mat Min Sub Machines Disabled 3 | . 2 1 . Max in Single Turn 1 | . 1 1 . Machines Repaired . | . . . . Machines Dismantled . | . . . . Machines Sabotaged . | . . . . Overloaded Fab Kills . | . . . . Hacking | -11 -10 -10 -10 --------- Run | Yrd Mat Min Sub Machines Accessed 5 | . 4 . 1 Terminals 3 | . 3 . . Fabricators . | . . . . Repair Stations . | . . . . Recycling Units 1 | . 1 . . Scanalyzers . | . . . . Garrison Access . | . . . . Total Hacks 13 | . 12 . 1 Successful 6 | . 5 . 1 Failed 7 | . 7 . . Catastrophic 1 | . 1 . . Database Lockouts . | . . . . Manual 1 | . 1 . . Terminals 11 | . 11 . . Fabricators . | . . . . Repair Stations . | . . . . Recycling Units 1 | . 1 . . Scanalyzers . | . . . . Garrison Access . | . . . . Terminal Hacks 5 | . 4 . 1 Prototype ID Bank 2 | . 2 . . Open Door 1 | . . . 1 Locate Traps 2 | . 2 . . Fabricator Hacks . | . . . . Repair Station Hacks . | . . . . Recycling Unit Hacks . | . . . . Scanalyzer . | . . . . Garrison Access Hacks . | . . . . Unauthorized Hacks 1 | . 1 . . Terminals 1 | . 1 . . Botnet 1 | . 1 . . Fabricators . | . . . . Repair Stations . | . . . . Recycling Units . | . . . . Scanalyzers . | . . . . Garrison Access . | . . . . Data Cores Recovered . | . . . . Used . | . . . . Hacking Detections 4 | . 4 . . Full Trace Events . | . . . . Feedback Events . | . . . . Feedback Blocked . | . . . . Robot Schematics Acquired . | . . . . Robots Built . | . . . . Authchips . | . . . . Time . | . . . . Total Robot Build Rating . | . . . . Part Schematics Acquired . | . . . . Parts Built . | . . . . Authchips . | . . . . Time . | . . . . Total Part Build Rating . | . . . . Part Studies Acquired . | . . . . Parts Repaired . | . . . . Time . | . . . . Parts Recycled . | . . . . Recycled Matter . | . . . . Retrieved Matter . | . . . . Retrieved Components . | . . . . Parts Scanalyzed . | . . . . Part Schematics Acquired . | . . . . Parts Damaged . | . . . . Bothacking | -11 -10 -10 -10 ------------ Run | Yrd Mat Min Sub Used RIF Installer . | . . . . Robots Hacked . | . . . . Non-combat . | . . . . Combat . | . . . . Robot Hacks Applied . | . . . . Relay Couplers Released . | . . . . Fabnet Peak Effective % . | . . . . Robots Rewired . | . . . . Allies Hacked . | . . . . Hacks Repelled . | . . . . Allies | -11 -10 -10 -10 -------- Run | Yrd Mat Min Sub Total Allies 1 | . . 1 . Largest Group 1 | . . 1 1 Highest-Rated Group 31 | . . 31 31 Highest-Rated Ally 31 | . . 31 31 Total Orders . | . . . . Ally Attacks 3 | . . . 3 Total Damage 42 | . . . 42 Kills . | . . . . Allies Corrupted . | . . . . Allies Melted . | . . . . Intel | -11 -10 -10 -10 ------- Run | Yrd Mat Min Sub Active Infowar (turns) 78 | . 78 . . Optics 78 | . 78 . . Robot Analysis Total . | . . . . Derelict Logs Recovered 1 | . . 1 . Drone Launches . | . . . . Drone Recoveries . | . . . . Exploration | -11 -10 -10 -10 ------------- Run | Yrd Mat Min Sub Turns Passed 3567 | 64 884 809 1810 Spaces Moved 1619 | 50 430 419 720 Core 14 | 14 . . . Treads 767 | . 412 355 . Legs 838 | 36 18 64 720 Wheels . | . . . . Hover . | . . . . Flight . | . . . . Fastest Speed 50 | 50 120 160 190 Average Speed 185 | 100 158 164 220 Slowest Speed 260 | 120 160 190 260 Overloaded Moves . | . . . . Propulsion Burnouts . | . . . . Robots Hopped . | . . . . Potential Cave-ins . | . . . . Cave-ins Triggered . | . . . . Exploration Rate (%) 51 | 3 71 83 49 Regions Visited 3 Branch Regions 2 Pre-discovered Areas 2 | . . 1 1 Known Exits Taken . | . . . . Unknown Exits Taken 3 | 1 1 1 . Scrap Searched 7 | . . 1 6 Spaces Dug . | . . . . Terrain Destroyed 8 | . 2 1 5 Melee . | . . . . Projectile 8 | . 2 1 5 AOE . | . . . . Terrain Rammed . | . . . . Walls Destroyed . | . . . . Machines Disabled . | . . . . Actions | -11 -10 -10 -10 --------- Run | Yrd Mat Min Sub Total 1960 | 62 544 495 859 Wait 156 | . 34 51 71 Move 1616 | 49 429 418 720 Hop . | . . . . Pick Up 32 | 9 16 . 7 Fast Attach 7 | 3 3 . 1 Attach 4 | 1 2 1 . Detach . | . . . . Swap 11 | . 4 1 6 Drop 17 | . 9 . 8 Fire 113 | . 47 21 45 Melee . | . . . . Ram . | . . . . Kick . | . . . . Crush 3 | . . 3 . Escape Stasis . | . . . . Rewire . | . . . . Trap 1 | . . . 1 Miscellaneous . | . . . . Route ------- -11/Scrapyard -10/Materials (discovered 4 exits: [*Mat x2] / [*Min x2]) -10/Mines (discovered 2 exits: [*Mat] / *Sub) -10/Subcaves (discovered 2 exits: [*Mat x2]) History --------- Turn | Location | Event 6 | -11/Scrapyard | Discovered new exit (range 14) 65 | -11/Scrapyard | Entered Materials 241 | -10/Materials | Discovered new exit (range 16) 331 | -10/Materials | Build established: Mutant 690 | -10/Materials | Discovered new exit (range 4) 690 | -10/Materials | Discovered new exit (range 13) 843 | -10/Materials | Discovered new exit (range 16) 949 | -10/Materials | Entered Mines 1425 | -10/Mines | Learned Materials emergency access door positions 1677 | -10/Mines | Discovered new exit (range 8) 1710 | -10/Mines | Escorted by a lone wolf Derelict 1730 | -10/Mines | Learned location of Storage (-8) 1750 | -10/Mines | Discovered new exit (range 3) 1758 | -10/Mines | Entered Subcaves 1758 | -10/Subcaves | Accompanied by 1 ally 1759 | -10/Subcaves | Approached by a straggling Scientist 1791 | -10/Subcaves | Discovered new exit (range 15) 1799 | -10/Subcaves | Discovered new exit (range 15) 1831 | -10/Subcaves | Disturbed a concealed Subdweller 1852 | -10/Subcaves | Core integrity fell below 50% 1951 | -10/Subcaves | Shifting Twisted Machinery released Flamer 2258 | -10/Subcaves | Shifting Twisted Machinery released Sub. Beam Cannon 2438 | -10/Subcaves | Build established: Derelict-Mutant 2826 | -10/Subcaves | Build established: Mutant 3059 | -10/Subcaves | Ambushed by Subdweller buried in earth 3069 | -10/Subcaves | A swath of the cavern ceiling suddenly collapsed 3140 | -10/Subcaves | Core integrity fell below 20% 3141 | -10/Subcaves | A swath of the cavern ceiling suddenly collapsed 3341 | -10/Subcaves | Learned location of Zion (-7) 3341 | -10/Subcaves | Met a Zionite searching for "candidates" 3568 | -10/Subcaves | Destroyed by D9-TSF(R) with Subdweller Machine Gun Last Messages --------------- at any moment. For your health and safety might I suggest a trip to Zion?" World map updated: -7/Zion. 03365_ SZ-U5T(R) destroyed. 03373_ System corrupted: Particle Cannon failed to cycle. 03373_ DN-KCJ(R) destroyed. FY-5AJ(c): "I think it's somewhere west of here" 03400_ Acquired 17 matter. FY-5AJ(c): "I think it's somewhere southwest of here" 03504_ Connecting with UFD SUBCON Station... 03504_ Current location identified: Subcaves >>Open Door Sealed Heavy Doors opened. FY-5AJ(c): "I think it's somewhere southwest of here" 03563_ JS-CSF(R) destroyed. 03567_ D9-TSF(R) affixes Scrap Shield Fragment to Scrap Shield. Map ----- +----------------------------------------------------+ | | | | | | | ?????????????????????????????????????????????????? | | ?????????????????????????????????????????????????? | | ?????????????????????????????????????????????????? | | ??????????????????????????########???????????????? | | ??????????????????????????#""""""#???????????????? | | ??????????????????????????#"X""""#???????????????? | | ??????????????????????????#" #???????????????? | | ??????????????????????????#" #???????????????? | | ??????????????????????????#"""" "#???????????????? | | ??????????????????????????##### ##???????????????? | | ????????????????????????????#"" "#???????????????? | | ???????????????????????????## X#???????????????? | | ??????????????????????????## ###??????????????? | | ??????????????????????????# #### #??????????????? | | ?????????????????????????### ## #?????????????## | | ??????????????#?????????## ### ###############" | | ??????????????# ????????# c # # #" ## " | | ?????????????? ????????## "" "" | | ?????????????? ???????# # ### " "" | | ??????????????""" ??????# ## ### | | ??????????????#"" ?????## ### """## "" "" | | ??????????????? ????## #?# "##""" " " # | | ????????????????? ???#@ #?## """""" # | | ??????????????????# ##?# #??# """ | | ??????????????????# ##[ #??## ### " | | ??????????????????# #%R#???#####?#####""" | | ??????????????????# !! #?????????????## " ### | | ??????????????????# # #?????????????## " #?# | | ?????????????????# #######?????????????#[ ### | | ?????????????????# ?????????????????????### | | ???????????????? ????????????????????????### | | ???????????????# ????????????????????????????## | | ???????????????#??????????????????????????????# | | ??????????????????????????????????????????????## | | ???????????????????????????????????????????????## | | ????????????????????????????????????????????????## | | ????????????????????????????????????????????###### | | ???????????????????????????????????????????## ## | | ??????????????????????????????????????????## # | | ???????????????????????????????######???### | | ?????????????????????????????# "" """#### | | ????????????????????????????? " """"### | | ?????????##?????????? ????????""""""" ## | | ????????## ##??????? ??????? " """ ## | | ????????# ###???? ???????#" "##" # | | ????????# #??? #????????????### ## | | ????????# #?? #?????????????# #" | +----------------------------------------------------+ Best States ------------- Heat Dissipation 47 Energy Generation 15 Energy Capacity 250 Matter Stores 300 Matter Capacity 300 Sight Range 18 Terrain Scan Density 10 Armor Coverage 100 Resistance: KI 10 Evasion (%) 55 Recoil Reduction 2 Item Schematics ----------------- None Robot Schematics ------------------ None Fabricated ------------ Nothing Repaired ---------- Nothing Studied --------- None Alien Tech Used ----------------- None Achievements -------------- Do Not Disturb Challenges ------------ None Game ------ Seed LegDisruptionBeacon Manual? 0 Play Time 00:18:22 Cumulative 393.7 hours Start 2025.11.21 @ 15:27:48 End 2025.11.21 @ 15:47:58 Sessions 1 Manual Loads 0 Difficulty Rogue Special Mode None Game No. 186 Rogue 186 Adventurer 0 Explorer 0 Win Type - Total 12 Types 9/0/2/0/0/0/0/0/0/1 Lore% 83 Gallery% 81 Achievement% 53 Wizard Run 0 Options --------- Layout 1 ASCII 0 Keyboard 0 Movement Mouse Keybinds 0 Fullscreen 1 Font 24/Smallcaps Map View 50x35 Zoom Use 0% Tactical HUD 1 Map Filters NONE Filters NONE Steam 1 RUN: 30325dae-6f1b-481a-b5ba-25cb7e53f5b0